bitfinex/quotes_ETHUSD_20220118
["timestamp","ask_amount","ask_price","bid_price","bid_amount"]
[1642541526996,1.52083991,3161.8,3161.7,0.4290789]
[1642541527392,0.79094,3161.9,3161.7,0.43362629]
[1642541527592,1.5819071,3162.5,3161.7,0.43362629]
[1642541527593,0.00170527,3162.8,3162.6,3.98008711]
[1642541527790,0.00170527,3162.8,3162.6,4.40916601]
[1642541527791,0.79247377,3162.8,3162.6,4.40916601]
[1642541527992,0.79247377,3162.8,3162.0,0.1264]
[1642541527993,0.00113685,3162.7,3162.0,0.1264]
[1642541528190,0.79091,3162.6,3162.0,0.4290789]
[1642541528392,1.38371953,3162.3,3162.1,0.00227369]
[1642541528636,3.1636541,3162.6,3162.1,0.34316038]
[1642541528848,3.12496722,3162.5,3162.1,0.34316038]
[1642541529041,3.12496722,3162.5,3162.1,0.34088669]
[1642541529241,0.00113685,3162.4,3162.1,0.34088669]
[1642541529446,1.58172,3162.3,3162.1,0.34088669]
[1642541529843,1.18672858,3162.2,3162.1,0.34088669]
[1642541530043,1.18672858,3162.2,3161.6,0.34088669]
[1642541530245,1.97767398,3162.2,3161.6,0.34088669]
[1642541530445,1.97767398,3162.2,3161.7,0.00284212]
[1642541530649,1.58184,3162.1,3161.7,0.00284212]
[1642541530846,0.79092,3162.1,3161.5,0.00397897]
[1642541531046,0.79092,3162.1,3161.3,3.30991678]
[1642541531047,1.72034874,3161.5,3161.4,0.00454739]
[1642541531450,1.72034874,3161.5,3161.4,0.13104739]
[1642541531647,1.72034874,3161.5,3161.4,3.2765]
[1642541531949,1.72034874,3161.5,3161.4,0.13104739]
[1642541532146,1.49267967,3161.9,3161.4,0.00454739]
[1642541532394,1.49267967,3161.9,3161.5,0.0765]
[1642541532688,1.49267967,3161.9,3161.6,0.00341054]
[1642541532886,1.49267967,3161.9,3161.4,0.07991054]
[1642541533086,1.80241227,3161.6,3161.4,0.07991054]
[1642541533691,1.80241227,3161.6,3161.2,0.1265]
[1642541533889,1.80241227,3161.6,3161.2,0.0765]
[1642541534089,0.00113685,3161.8,3161.3,0.00170527]
[1642541534291,0.00113685,3161.8,3161.4,0.1265]
[1642541534493,0.00113685,3161.8,3161.3,1.27701639]
[1642541534690,0.00113685,3161.8,3161.3,0.00170527]
[1642541534889,0.79095,3161.7,3161.4,0.00113685]
[1642541535089,0.79095,3161.7,3161.2,0.0022737]
[1642541535090,2.13212167,3161.7,3161.2,0.0022737]
[1642541535489,2.13212167,3161.7,3161.0,3.33044001]
[1642541535889,0.00284212,3161.6,3161.1,0.15835]
[1642541536135,0.00284212,3161.6,3161.4,1.18747717]
[1642541536337,0.00227369,3161.5,3161.4,1.18747717]
[1642541536636,0.42847947,3162.4,3161.3,4.75]
[1642541536836,0.79087,3162.3,3161.4,0.1265]
[1642541537039,0.42847947,3162.4,3161.3,0.00113684]
[1642541537040,0.0022737,3161.9,3161.3,0.00113684]
[1642541537242,0.0022737,3161.9,3161.4,0.9171743]
[1642541537438,0.02060787,3162.9,3161.5,0.79063]
[1642541537439,0.00170527,3161.8,3161.5,0.79063]
[1642541537639,0.00170527,3161.8,3161.6,1.73309989]
[1642541537938,1.34337608,3162.9,3161.6,1.73309989]
[1642541537939,0.00113685,3161.7,3161.6,1.73309989]
[1642541538139,0.00113685,3161.7,3161.6,3.47124325]
[1642541538540,0.00113685,3161.7,3161.6,3.62959325]
[1642541538939,0.00113685,3161.7,3161.6,1.73309989]
[1642541539983,0.00113685,3161.7,3161.6,3.88268069]
[1642541540384,0.00113685,3161.7,3161.6,7.21289919]
[1642541540582,0.00113685,3161.7,3161.6,7.73268069]
[1642541540783,0.00113685,3161.7,3161.6,11.10338682]
[1642541541182,0.00113685,3161.7,3161.6,4.04103069]
[1642541542189,0.00113685,3161.7,3161.6,3.88268069]
[1642541542587,0.00113685,3161.7,3161.6,3.75618069]
[1642541543185,0.00113685,3161.7,3161.6,1.60659989]
[1642541543385,0.00113685,3161.7,3161.6,5.25659989]
[1642541545136,0.00113685,3161.7,3161.6,7.4998025]
[1642541545336,0.00113685,3161.7,3161.6,10.88337528]
[1642541545538,0.00113685,3161.7,3161.6,12.85525108]
[1642541545739,1.12807246,3162.9,3162.1,0.00167327]
[1642541545937,0.1265,3163.1,3162.1,0.00167327]
[1642541546139,0.00625266,3162.8,3162.1,0.00167327]
[1642541546538,1.5815156,3162.8,3162.7,0.00341055]
[1642541546940,1.5815156,3162.8,3162.7,1.17008325]
[1642541546941,1.58776826,3162.8,3162.7,1.17008325]
[1642541547140,1.58776826,3162.8,3162.7,0.00341055]
[1642541547383,2.20146774,3162.8,3162.7,0.00341055]
[1642541547985,3.78298334,3162.8,3162.7,0.00341055]
[1642541548187,5.12783099,3162.8,3162.7,0.00341055]
[1642541548390,8.17783099,3162.8,3162.7,0.00341055]
[1642541548588,5.12783099,3162.8,3162.7,0.00341055]
[1642541549089,5.40982459,3162.8,3162.7,0.00341055]
[1642541551346,4.06497694,3162.8,3162.7,0.00341055]
[1642541551548,3.27420134,3162.8,3162.7,0.00341055]
[1642541555187,5.55,3162.7,3162.1,0.00167327]
[1642541555387,5.06261301,3162.2,3162.1,0.00167327]
[1642541555583,5.13901301,3162.2,3162.1,0.00167327]
[1642541555782,5.42100661,3162.2,3162.1,0.00167327]
[1642541556387,8.27421739,3162.2,3162.1,0.00167327]
[1642541556588,9.06526089,3162.2,3162.1,0.00167327]
[1642541556786,4.05268438,3162.2,3162.1,0.00167327]
[1642541556987,3.67014543,3162.2,3162.1,0.00167327]
[1642541557586,2.49905663,3162.2,3162.1,0.00167327]
[1642541557796,2.37265663,3162.2,3162.1,0.00167327]
[1642541558186,1.96411558,3162.2,3162.1,0.00167327]
[1642541558487,1.96411558,3162.2,3161.9,1.33172997]
[1642541558729,0.2819936,3162.2,3161.9,1.33172997]
[1642541558931,2.299655,3162.1,3162.0,0.00454739]
[1642541559334,2.299655,3162.1,3161.4,0.00795793]
[1642541559534,2.5816486,3162.1,3161.5,0.1265]
[1642541559935,2.5816486,3162.1,3161.6,0.00682108]
[1642541560736,0.2819936,3162.0,3161.9,1.19952095]
[1642541560937,0.2819936,3162.0,3161.6,0.00682108]
[1642541561139,0.2819936,3162.0,3161.9,0.00511581]
[1642541561435,0.2819936,3162.0,3161.5,0.91734]
[1642541561436,0.2819936,3162.0,3161.6,0.00682108]
[1642541562038,0.2819936,3161.9,3161.6,1.53261259]
[1642541562498,0.2819936,3161.9,3161.7,0.00625266]
[1642541562903,1.07188052,3161.8,3161.7,0.00625266]
[1642541563303,1.35387412,3161.8,3161.7,0.00625266]
[1642541563705,0.2819936,3161.8,3161.7,0.00625266]
[1642541565307,2.19814504,3161.8,3161.5,0.00738951]
[1642541565710,2.19814504,3161.8,3161.3,0.00852635]
[1642541566009,0.1265,3162.2,3161.6,1.18120209]
[1642541566242,1.30711318,3162.3,3161.6,1.18120209]
[1642541566446,1.13061318,3162.3,3161.7,0.00625266]
[1642541566643,0.79093,3162.1,3161.7,0.00625266]
[1642541566843,2.32596919,3161.9,3161.7,0.00625266]
[1642541567246,0.3607594,3162.0,3161.3,0.00852635]
[1642541567845,0.3607594,3162.0,3161.3,1.28911202]
[1642541568050,0.3607594,3162.0,3161.3,0.00852635]
[1642541568245,2.23553088,3162.0,3161.4,0.00795793]
[1642541568447,0.2342594,3161.9,3161.3,0.00852635]
[1642541568745,0.2342594,3161.9,3161.4,0.79089]
[1642541569147,0.2342594,3161.9,3161.3,0.00852635]
[1642541569148,0.2342594,3161.9,3161.5,0.00738951]
[1642541569547,0.2342594,3161.9,3161.3,0.00852635]
[1642541569746,1.761893,3161.7,3161.3,0.00852635]
[1642541569992,0.2342594,3162.1,3161.3,0.00852635]
[1642541570188,0.79099,3161.8,3161.3,0.00852635]
[1642541570388,0.1265,3161.7,3161.2,0.00909478]
[1642541570792,0.02386042,3161.6,3161.2,0.00909478]
[1642541570992,1.91437167,3161.5,3161.2,0.00909478]
[1642541571191,2.14863107,3161.5,3161.2,0.00909478]
[1642541571591,2.14863107,3161.5,3161.1,0.0096632]
[1642541572397,0.2342594,3161.4,3161.1,0.0096632]
[1642541572797,0.2342594,3161.4,3161.0,0.0861632]
[1642541572999,0.00113685,3161.3,3160.9,0.126703]
[1642541573203,1.08927355,3161.1,3160.9,0.126703]
[1642541575045,0.23422101,3161.0,3160.9,0.126703]
[1642541575449,0.23422101,3161.0,3160.9,0.12783985]
[1642541576249,1.08927355,3161.1,3161.0,0.46844202]
[1642541578192,1.10527355,3161.1,3161.0,0.46844202]
[1642541578993,0.1265,3161.4,3161.0,0.46844202]
[1642541579193,0.1265,3161.4,3161.1,0.04730238]
[1642541579394,0.1265,3161.4,3161.1,0.04843923]
[1642541579596,1.95281002,3161.3,3161.1,0.04730238]
[1642541579796,1.95281002,3161.3,3161.0,0.46844202]
[1642541580205,1.95281002,3161.3,3161.1,0.00113685]
[1642541580396,0.1265,3161.6,3161.1,3.07832043]
[1642541580598,1.184,3161.8,3161.2,0.06054537]
[1642541580799,0.00170527,3161.6,3161.1,3.07832043]
[1642541580999,0.00170527,3161.6,3161.2,0.1265]
[1642541581241,0.00113684,3161.5,3161.2,0.1265]
[1642541581443,0.00113684,3161.5,3161.3,2.05564307]
[1642541581644,0.52076453,3162.5,3161.4,5.6765]
[1642541581645,0.00568423,3162.3,3161.4,5.6765]
[1642541581843,0.00568423,3162.3,3161.5,0.04254267]
[1642541582043,0.39426453,3162.5,3161.5,0.04254267]
[1642541582044,0.00511581,3162.2,3161.6,0.91729]
[1642541582446,0.00454739,3162.1,3161.6,0.91729]
[1642541582848,0.39426453,3162.5,3161.6,0.91729]
[1642541582849,0.00397896,3162.0,3161.6,0.91729]
[1642541583047,0.00397896,3162.0,3161.8,1.94473769]
[1642541583247,2.21250622,3162.8,3162.1,0.7907]
[1642541583447,0.47798652,3162.8,3161.9,5.6765]
[1642541583649,0.13435793,3162.7,3161.9,5.55]
[1642541583847,1.25294579,3162.4,3161.9,5.55]
[1642541584247,0.00568423,3162.3,3161.9,5.55]
[1642541584447,0.00568423,3162.3,3161.5,3.39414524]
[1642541584448,2.02948148,3162.0,3161.5,3.39414524]
[1642541584747,0.00341054,3161.9,3161.5,4.18495524]
[1642541585196,1.25294579,3162.4,3161.5,4.18495524]
[1642541585197,1.0057879,3162.4,3161.5,4.18495524]
[1642541585396,0.1264,3162.7,3161.7,1.25147312]
[1642541585596,0.00284212,3162.3,3161.9,0.790667]
[1642541585796,0.00284212,3162.3,3161.9,2.87039933]
[1642541585997,0.0022737,3162.2,3161.9,2.87039933]
[1642541586396,0.0022737,3162.2,3161.7,2.83282312]
[1642541586397,0.00170528,3162.1,3161.7,4.490654]
[1642541586798,0.00113685,3162.0,3161.7,4.649004]
[1642541586999,0.00113685,3162.0,3161.7,1.40982312]
[1642541587200,0.00511582,3162.7,3161.8,3.36568088]
[1642541587397,0.00511582,3162.7,3162.1,2.3714838]
[1642541587598,23.9504,3163.6,3162.2,1.74441084]
[1642541587599,0.00454739,3162.6,3162.2,1.74441084]
[1642541587997,0.00397897,3162.5,3162.2,1.74441084]
[1642541588299,0.00341055,3162.4,3162.3,5.58813772]
[1642541588498,0.00341055,3162.4,3162.3,6.62529]
[1642541588745,0.00341055,3162.4,3162.3,5.6764]
[1642541588945,0.00341055,3162.4,3162.3,8.76956989]
[1642541589345,0.00341055,3162.4,3162.3,8.92791989]
[1642541589545,0.00341055,3162.4,3162.3,8.76956989]
[1642541590548,0.00341055,3162.4,3162.3,8.92791989]
[1642541591146,0.00341055,3162.4,3162.3,9.71846989]
[1642541591746,0.00341055,3162.4,3162.3,1.0753]
[1642541591946,0.00341055,3162.4,3162.3,0.1264]
[1642541592148,0.00341055,3162.4,3162.2,1.45966084]
[1642541593010,0.00341055,3162.4,3162.3,2.68512785]
[1642541595413,1.48480055,3163.0,3162.3,2.68512785]
[1642541595815,0.00284211,3162.9,3162.3,2.68512785]
[1642541596242,0.00227369,3162.8,3162.2,2.68512785]
[1642541596650,0.00170527,3162.7,3162.2,2.68512785]
[1642541597047,0.1264,3163.2,3162.2,2.68512785]
[1642541597048,0.00113684,3162.6,3162.2,2.68512785]
[1642541597450,0.00397896,3163.1,3162.2,2.68512785]
[1642541597652,0.79066,3162.9,3162.5,1.85642121]
[1642541598050,0.00227369,3162.8,3162.5,1.85642121]
[1642541598251,0.00227369,3162.8,3162.2,0.008]
[1642541598452,0.15128735,3162.7,3162.2,0.008]
[1642541598754,0.84823496,3162.4,3162.2,0.008]
[1642541598951,0.84823496,3162.4,3162.0,0.00341055]
[1642541598952,3.9764,3162.3,3162.0,0.00341055]
[1642541599153,0.04282618,3162.2,3162.0,0.00341055]
[1642541599461,4.5764,3162.1,3162.0,0.00341055]
[1642541599649,5.6181,3162.1,3162.0,0.00341055]
[1642541599902,6.40919,3162.1,3162.0,0.00568425]
[1642541600102,6.40919,3162.1,3161.6,0.126673]
[1642541600402,0.02794991,3162.0,3161.7,0.00170527]
[1642541600603,0.1265,3161.9,3161.0,0.46844202]
[1642541600901,0.1265,3161.9,3161.1,0.00341054]
[1642541600902,2.8013612,3161.2,3161.1,0.00341054]
[1642541601106,0.79113,3161.2,3161.1,0.00341054]
[1642541602507,2.53979223,3161.2,3161.1,0.00341054]
[1642541604844,5.53979223,3161.2,3161.1,0.00341054]
[1642541605046,5.66629223,3161.2,3161.1,0.00341054]
[1642541605646,2.66629223,3161.2,3161.0,0.42185256]
[1642541606050,1.74866223,3161.2,3161.0,0.42185256]
[1642541606855,1.74866223,3161.2,3161.1,1.29438691]
[1642541607410,1.18555453,3161.3,3161.1,1.29438691]
[1642541607411,0.79129,3161.3,3161.1,1.29438691]
[1642541608414,2.85038858,3161.3,3161.1,1.29438691]
[1642541608614,0.79129,3161.3,3161.1,1.29438691]
[1642541608815,1.53076453,3161.8,3161.1,1.29438691]
[1642541608816,0.79098,3161.5,3161.1,1.29438691]
[1642541609014,0.39426453,3161.8,3161.1,1.29438691]
[1642541609218,0.00170527,3161.4,3161.2,0.1265]
[1642541609420,0.00341054,3161.7,3161.2,0.1265]
[1642541609616,0.00113685,3161.3,3161.2,0.1265]
[1642541609819,0.00284212,3161.6,3161.2,3.8765]
[1642541610015,0.00113685,3161.3,3161.2,3.8765]
[1642541610316,0.00113685,3161.3,3161.2,3.75]
[1642541610918,0.00113685,3161.3,3161.1,1.42088691]
[1642541610919,0.00113685,3161.3,3161.1,0.1265]
[1642541611548,0.00113685,3161.3,3161.0,0.42185256]
[1642541611949,1.80717119,3161.2,3161.0,0.42185256]
[1642541612952,2.59826119,3161.2,3161.0,0.42185256]
[1642541614461,5.55,3161.1,3160.2,0.1265]
[1642541614661,5.55,3161.1,3159.7,4.79318]
[1642541614662,0.05478407,3160.9,3159.7,0.1265]
[1642541614899,1.85518899,3160.6,3160.3,0.00454739]
[1642541615102,1.70918,3160.5,3160.3,0.00454739]
[1642541615303,1.70918,3160.5,3159.6,4.02769178]
[1642541615304,0.02356349,3160.4,3159.7,0.00795793]
[1642541615502,0.02356349,3160.4,3159.9,0.00682108]
[1642541615706,0.02356349,3160.4,3159.7,0.00795793]
[1642541615707,0.79134,3160.3,3159.7,0.00795793]
[1642541615903,0.79134,3160.2,3159.7,0.00795793]
[1642541616104,2.02456135,3160.0,3159.7,0.00795793]
[1642541616305,0.79134,3160.2,3159.7,0.00795793]
[1642541616805,0.79136,3160.0,3159.7,0.00795793]
[1642541617205,0.76576077,3160.0,3159.7,0.00795793]
[1642541617404,0.76576077,3160.0,3159.8,1.24340173]
[1642541617805,0.76576077,3160.0,3159.9,0.00682108]
[1642541620051,0.00919457,3159.9,3159.4,0.0096632]
[1642541620251,0.00919457,3159.9,3159.0,0.2445132]
[1642541620252,0.79139,3159.9,3159.0,0.2445132]
[1642541620653,0.0022737,3159.8,3159.5,1.25871951]
[1642541620853,2.26401886,3159.7,3159.5,1.25871951]
[1642541621054,2.26572413,3159.7,3159.5,1.25871951]
[1642541621254,0.00113685,3159.6,3159.1,0.00170527]
[1642541621855,0.01448597,3159.4,3159.1,0.00170527]
[1642541622056,0.1265,3159.5,3159.1,0.00170527]
[1642541622257,0.1265,3159.5,3159.1,1.09817606]
[1642541622704,0.1265,3159.5,3159.2,0.00113685]
[1642541622907,0.79163,3159.4,3159.2,0.00113685]
[1642541623204,0.05801242,3159.3,3159.0,0.00227369]
[1642541623805,0.05801242,3159.3,3159.0,1.13998758]
[1642541624104,0.05801242,3159.3,3159.0,0.00227369]
[1642541624105,1.88270895,3159.2,3159.0,0.00227369]
[1642541625508,1.88270895,3159.2,3159.1,1.30615918]
[1642541626253,2.00920895,3159.2,3159.1,0.008]
[1642541626453,6.35920895,3159.2,3159.1,0.008]
[1642541626854,6.39947895,3159.2,3159.1,0.008]
[1642541627258,7.82087928,3159.2,3159.1,0.008]
[1642541627460,7.19121895,3159.2,3159.1,0.008]
[1642541628061,2.00920895,3159.2,3159.1,0.008]
[1642541628460,2.00920895,3159.2,3159.1,1.28823642]
[1642541629158,1.88270895,3159.2,3159.1,1.28823642]
[1642541629358,1.88270895,3159.2,3159.1,1.28023642]
[1642541631805,1.88270895,3159.2,3159.1,1.18023642]
[1642541632808,1.93714442,3159.2,3159.1,1.18023642]
[1642541633406,1.93714442,3159.2,3159.0,0.01027369]
[1642541634059,4.84027,3159.1,3159.0,0.01027369]
[1642541634258,4.96677,3159.1,3159.0,0.01027369]
[1642541634659,4.96677,3159.1,3159.0,0.00227369]
[1642541635058,0.7918,3159.0,3158.8,1.48720549]
[1642541635261,4.7765,3158.9,3158.8,1.48720549]
[1642541635658,4.7765,3158.9,3158.8,0.00341054]
[1642541636058,0.1265,3158.9,3158.0,0.00795793]
[1642541636259,0.7918,3158.9,3158.0,0.13445793]
[1642541636763,0.7918,3158.9,3158.1,0.0073895]
[1642541636961,0.7918,3158.9,3158.2,0.1265]
[1642541637164,0.7918,3158.9,3158.8,1.46654005]
[1642541637397,0.83207,3158.9,3158.3,0.00625266]
[1642541637601,0.9182762,3158.8,3158.3,0.00625266]
[1642541637804,0.79178,3158.7,3158.2,0.00682108]
[1642541638299,1.74545552,3158.6,3158.0,0.00795793]
[1642541638702,1.81066326,3158.7,3158.1,1.47146973]
[1642541638901,5.4428,3159.2,3158.8,2.49153788]
[1642541639100,4.2195,3159.2,3158.8,2.49153788]
[1642541639301,4.2195,3159.2,3158.9,0.00284212]
[1642541639499,0.1265,3159.5,3159.0,0.06101947]
[1642541639702,0.1265,3159.5,3159.0,1.54286223]
[1642541639904,0.79161,3159.4,3159.1,0.00170527]
[1642541640305,2.08649834,3159.3,3159.1,0.00170527]
[1642541640904,1.58318,3159.4,3159.1,0.00170527]
[1642541641652,1.62345,3159.4,3159.1,0.00170527]
[1642541641850,0.1265,3159.3,3159.1,0.00170527]
[1642541642453,6.32295223,3159.2,3159.1,0.00170527]
[1642541642655,6.82945223,3159.2,3159.1,0.00170527]
[1642541642861,7.13371,3159.1,3158.8,2.49153788]
[1642541643157,0.91835,3159.0,3158.9,0.00113685]
[1642541643355,4.20862,3159.0,3158.9,0.00113685]
[1642541643557,5.55,3158.9,3158.3,0.008]
[1642541643756,1.92996584,3158.7,3158.3,0.008]
[1642541643958,0.16677,3158.6,3158.4,0.00284211]
[1642541644159,0.9183575,3158.6,3158.4,0.00284211]
[1642541645498,0.9183575,3158.6,3158.2,1.16449573]
[1642541645499,2.41611,3158.5,3158.3,0.00341054]
[1642541645702,4.1265,3158.4,3158.3,0.00341054]
[1642541646102,4.15,3158.3,3158.2,1.16449573]
[1642541646302,4.94204,3158.3,3157.9,1.5883437]
[1642541646500,3.03988306,3158.2,3157.9,1.5883437]
[1642541646700,2.37613,3158.1,3158.0,0.00170527]
[1642541647901,8.9191,3158.1,3158.0,0.00170527]
[1642541648104,5.78412,3158.0,3157.9,1.5883437]
[1642541648949,5.82439,3158.0,3157.9,1.5883437]
[1642541650954,1.62439,3158.0,3157.9,1.5883437]
[1642541651154,1.62439,3158.0,3157.9,1.5963437]
[1642541651357,1.36835,3158.1,3157.9,1.5963437]
[1642541651554,1.17205,3158.1,3157.9,1.5963437]
[1642541651855,2.24784306,3158.2,3158.0,0.1265]
[1642541652060,4.6189,3158.9,3158.0,0.1265]
[1642541652255,4.2389,3158.9,3158.0,3.34300782]
[1642541652506,0.00113685,3158.2,3158.0,3.34300782]
[1642541652703,0.00113685,3158.2,3158.1,7.97917768]
[1642541652903,0.00113685,3158.2,3158.1,9.13407768]
[1642541653306,0.00113685,3158.2,3158.1,5.91756986]
[1642541653503,0.00113685,3158.2,3158.1,7.97430142]
[1642541653705,0.00113685,3158.2,3158.1,11.19080924]
[1642541654105,0.79161,3159.1,3158.5,0.0022737]
[1642541654311,0.79161,3159.1,3158.6,0.1265]
[1642541654509,0.00454739,3159.0,3158.8,1.7569474]
[1642541654708,0.00454739,3159.0,3158.6,0.1265]
[1642541655005,1.2463,3159.4,3158.6,0.1265]
[1642541655006,0.00397896,3158.9,3158.6,0.1265]
[1642541655406,0.00341054,3158.8,3158.7,1.34335798]
[1642541657654,0.04027,3159.4,3158.7,1.34335798]
[1642541657854,0.1266,3159.5,3158.9,2.18320669]
[1642541658055,0.00341054,3159.4,3158.5,0.0022737]
[1642541658358,0.12934212,3159.3,3158.6,0.00113685]
[1642541658556,0.00284212,3159.3,3158.6,0.00113685]
[1642541658855,0.00227369,3159.2,3158.6,0.00113685]
[1642541659255,0.00170527,3159.1,3159.0,1.37320855]
[1642541659657,0.00170527,3159.1,3158.6,0.00113685]
[1642541660118,0.00113685,3159.0,3158.6,0.00113685]
[1642541660521,0.00113685,3159.0,3158.7,0.008]
[1642541660722,0.00113685,3159.0,3158.7,1.54595347]
[1642541661522,0.00113685,3159.0,3158.8,1.75280062]
[1642541662223,0.00113685,3159.0,3158.7,0.008]
[1642541662224,0.1265,3158.9,3158.7,0.008]
[1642541662427,0.16677,3158.9,3158.7,0.008]
[1642541663430,3.49027,3158.8,3158.7,0.008]
[1642541663663,3.49027,3158.8,3158.7,1.41644995]
[1642541664167,3.45,3158.8,3158.7,1.41644995]
[1642541665170,0.38113685,3159.0,3158.6,0.00113685]
[1642541665171,5.25,3158.7,3158.6,0.00113685]
[1642541665368,0.42140685,3159.0,3158.6,0.00113685]
[1642541665369,0.91839,3158.9,3158.6,0.00113685]
[1642541666168,4.59027,3158.7,3158.6,0.00113685]
[1642541666369,0.1265,3158.9,3158.6,0.00113685]
[1642541666572,0.42140685,3159.0,3158.6,0.00113685]
[1642541666771,0.38113685,3159.0,3158.6,0.00113685]
[1642541666970,0.38113685,3159.0,3158.6,0.06967826]
[1642541667170,0.38113685,3159.0,3158.6,0.00113685]
[1642541667403,0.38113685,3159.0,3158.8,1.36447652]
[1642541668612,0.00113685,3159.0,3158.9,1.94872996]
[1642541668810,0.00113685,3159.0,3158.9,6.07403778]
[1642541669009,0.00113685,3159.0,3158.9,2.98402996]
[1642541669611,0.00113685,3159.0,3158.9,6.20053778]
[1642541669812,0.00113685,3159.0,3158.9,2.98402996]
[1642541670011,0.00113685,3159.0,3158.9,2.85752996]
[1642541670813,0.00113685,3159.0,3158.9,1.94872996]
[1642541672759,0.00113685,3159.0,3158.8,1.36447652]
[1642541674361,0.00113685,3159.0,3158.6,0.00113685]
[1642541674562,0.01100335,3158.9,3158.6,0.00113685]
[1642541674763,0.79288685,3159.0,3158.7,1.81603807]
[1642541675805,2.05542118,3159.0,3158.7,1.81603807]
[1642541676002,2.05542118,3159.0,3158.6,0.00113685]
[1642541676003,0.1265,3158.9,3158.6,0.00113685]
[1642541676202,0.79288685,3159.0,3158.6,0.00113685]
[1642541676408,2.37662685,3159.0,3158.6,0.00113685]
[1642541676803,0.79288685,3159.0,3158.6,0.00113685]
[1642541677203,1.58469685,3159.0,3158.6,0.00113685]
[1642541677405,0.79288685,3159.0,3158.6,0.00113685]
[1642541677605,0.29288685,3159.0,3158.6,0.00113685]
[1642541677806,0.29288685,3159.0,3158.6,0.0022737]
[1642541680460,0.04027,3158.9,3158.6,0.0022737]
[1642541680659,0.13930599,3158.8,3158.6,0.0022737]
[1642541680861,5.49186,3158.7,3158.6,0.0022737]
[1642541690608,5.49186,3158.7,3158.6,1.25003488]
[1642541692012,5.49186,3158.7,3158.6,0.0022737]
[1642541692208,0.69186,3158.7,3158.6,0.0022737]
[1642541692809,3.09186,3158.7,3158.6,0.0022737]
[1642541693011,0.79179,3158.5,3158.0,0.08445795]
[1642541693210,0.79179,3158.5,3157.3,3.84331895]
[1642541693211,0.79178,3158.4,3158.3,1.37864919]
[1642541693409,0.79178,3158.4,3158.3,1.38035446]
[1642541694358,2.95937882,3158.4,3158.3,1.38035446]
[1642541694563,0.79178,3158.4,3158.3,1.38035446]
[1642541694760,0.79172,3158.7,3158.3,1.38035446]
[1642541694959,0.961,3158.5,3158.3,1.38035446]
[1642541695159,0.961,3158.5,3158.4,0.00113684]
[1642541696360,0.911,3158.5,3158.4,0.00113684]
[1642541699509,2.96507768,3158.5,3158.4,0.00113684]
[1642541699910,0.911,3158.5,3158.4,0.00113684]
[1642541700312,0.00113685,3158.8,3158.4,0.00113684]
[1642541700611,0.911,3158.7,3158.4,0.00113684]
[1642541701256,0.911,3158.7,3158.5,2.24626629]
[1642541701657,0.00113685,3158.8,3158.5,2.24626629]
[1642541702960,0.00113685,3158.8,3158.6,0.10592073]
[1642541703160,0.00113685,3158.8,3158.7,5.70829]
[1642541703359,0.00113685,3158.8,3158.7,6.79359]
[1642541703860,3.685e-05,3158.8,3158.7,8.52532451]
[1642541704060,3.685e-05,3158.8,3158.7,13.09467486]
[1642541704259,3.685e-05,3158.8,3158.7,12.66645766]
[1642541704660,4.1089,3160.9,3158.7,12.67365766]
[1642541704939,0.01080005,3160.7,3159.4,0.79118]
[1642541705139,0.01080005,3160.7,3160.5,2.14400662]
[1642541705341,0.1265,3161.0,3160.5,3.38755322]
[1642541705342,0.01023162,3160.6,3160.5,3.38755322]
[1642541705539,0.01023162,3160.6,3160.5,1.2435466]
[1642541706347,0.01023162,3160.6,3159.7,0.1265]
[1642541706546,0.01023162,3160.6,3160.1,1.99422723]
[1642541706746,0.1361632,3160.5,3160.1,1.99422723]
[1642541706945,0.9274432,3160.5,3160.1,1.99422723]
[1642541707145,0.00909478,3160.4,3160.1,1.99422723]
[1642541707344,0.80041478,3160.4,3160.2,1.47438614]
[1642541707549,0.80041478,3160.4,3160.1,1.99422723]
[1642541707550,0.00852635,3160.3,3160.1,1.99422723]
[1642541707745,0.00852635,3160.3,3160.2,3.19854166]
[1642541707945,7.80855911,3161.3,3159.8,0.01251727]
[1642541707946,0.00795793,3160.2,3159.8,0.01251727]
[1642541708146,0.35855911,3161.3,3160.0,0.9678]
[1642541708147,0.00852635,3160.3,3160.0,0.9678]
[1642541708349,0.48505911,3161.3,3160.1,0.1265]
[1642541708350,1.5823399,3161.1,3160.1,0.1265]
[1642541708548,0.1265,3161.2,3159.9,0.1265]
[1642541708766,0.1265,3161.2,3160.2,1.9238041]
[1642541708767,0.14014216,3161.2,3160.2,1.9238041]
[1642541708969,0.01364216,3161.2,3160.3,1.38698201]
[1642541709366,0.01364216,3161.2,3161.1,1.47509141]
[1642541709772,0.01364216,3161.2,3160.3,3.32504166]
[1642541709969,0.01364216,3161.2,3159.9,3.7471]
[1642541709970,0.1265,3161.1,3159.9,3.7471]
[1642541710176,0.13957374,3161.1,3159.6,0.1265]
[1642541710370,0.01250532,3161.0,3159.5,0.1265]
[1642541710573,0.79127,3160.8,3159.5,0.1265]
[1642541710770,0.79127,3160.8,3160.2,1.09005808]
[1642541710969,0.79127,3160.8,3160.2,4.29005808]
[1642541710970,0.01080005,3160.7,3160.2,4.29005808]
[1642541711371,0.01023162,3160.6,3160.2,4.29005808]
[1642541711770,0.0096632,3160.5,3160.2,4.29005808]
[1642541712170,0.00909478,3160.4,3160.2,4.29005808]
[1642541712424,0.00909478,3160.4,3160.3,2.15061367]
[1642541712615,1.58236,3161.2,3160.2,4.29005808]
[1642541712616,3.19854166,3160.9,3160.2,4.29005808]
[1642541712819,3.19854166,3160.9,3160.2,3.2]
[1642541712820,0.00909478,3160.4,3160.2,3.2]
[1642541713015,0.1265,3160.3,3160.2,3.2]
[1642541713215,0.13502635,3160.3,3160.2,3.2]
[1642541713416,0.00852635,3160.3,3160.2,3.2]
[1642541713617,2.65852635,3160.3,3160.2,3.2]
[1642541713816,3.44988635,3160.3,3160.2,3.2]
[1642541715020,1.5831307,3160.1,3159.1,0.0008]
[1642541715218,0.79152,3159.8,3159.1,0.0008]
[1642541715423,7.01762919,3159.5,3159.1,0.0008]
[1642541715624,0.1265,3159.4,3159.1,0.0008]
[1642541715819,1.10861054,3159.4,3159.1,0.0008]
[1642541716020,2.21609121,3159.3,3159.1,0.0008]
[1642541716252,5.6765,3159.2,3159.1,0.0008]
[1642541716452,5.67877369,3159.2,3159.1,0.0008]
[1642541716855,0.12877369,3159.2,3159.1,0.0008]
[1642541717454,4.87877369,3159.2,3159.1,0.0008]
[1642541718059,2.16554953,3159.2,3159.1,0.0008]
[1642541718457,8.05581953,3159.2,3159.1,0.0008]
[1642541718857,7.75581953,3159.2,3159.1,0.0008]
[1642541719057,8.05581953,3159.2,3159.1,0.0008]
[1642541719257,2.50581953,3159.2,3159.1,0.0008]